fUSD/lending_fUSD_20260512
["ID","MTS","AMOUNT","RATE_DAILY","PERIOD"]
[422071649,1778549446000,-651.0,0.00035558,30]
[422071644,1778549446000,-157.0,0.00035552,30]
[422071641,1778549446000,-500.0,0.00035518,13]
[422071631,1778549446000,-3955.68,0.0003029,10]
[422071634,1778549446000,-150.0,0.00032636,2]
[422071645,1778549446000,-164.0,0.00035552,30]
[422071635,1778549446000,-150.0,0.00034267,2]
[422071633,1778549446000,-500.0,0.00031397,2]
[422071632,1778549446000,-150.0,0.00031081,2]
[422071627,1778549446000,-196.66,0.00024658,2]
[422071629,1778549446000,-196.66,0.00027397,30]
[422071630,1778549446000,-418.958,0.00028667,2]
[422071628,1778549446000,-196.66,0.00026027,7]
[422071626,1778549446000,-2205.86451856,0.000147,2]
[422071624,1778549446000,-303.63739543,0.000147,2]
[422071625,1778549446000,-289.4375,0.000147,2]
[422071655,1778549446000,-276.0,0.00035809,2]
[422071636,1778549446000,-990.29352938,0.000352,7]
[422071653,1778549446000,-500.01861265,0.0003568,120]
[422071662,1778549446000,-255.83973053,0.00036064,2]
[422071651,1778549446000,-500.0,0.00035616,120]
[422071656,1778549446000,-150.0,0.00035809,2]
[422071680,1778549446000,-605.72194096,0.00036684,2]
[422071678,1778549446000,-164.0,0.00036558,30]
[422071679,1778549446000,-1024.131,0.00036667,2]
[422071674,1778549446000,-157.0,0.00036552,30]
[422071672,1778549446000,-152.0,0.00036488,30]
[422071676,1778549446000,-288.0,0.00036558,30]
[422071673,1778549446000,-210.0,0.00036552,30]
[422071675,1778549446000,-157.0,0.00036552,30]
[422071671,1778549446000,-152.0,0.00036455,30]
[422071668,1778549446000,-152.0,0.00036422,30]
[422071669,1778549446000,-152.0,0.00036422,30]
[422071670,1778549446000,-152.0,0.00036455,30]
[422071682,1778549446000,-995.92361221,0.00036684,2]
[422071666,1778549446000,-150.0,0.00036414,2]
[422071654,1778549446000,-166.8175,0.00035689,7]
[422071650,1778549446000,-156.0,0.00035558,30]
[422071652,1778549446000,-161.66,0.00035616,2]
[422071658,1778549446000,-350.0,0.0003589,5]
[422071677,1778549446000,-651.0,0.00036558,30]
[422071661,1778549446000,-175.59,0.00036017,120]
[422071657,1778549446000,-204.0,0.00035809,2]
[422071659,1778549446000,-221.4990997,0.00036,120]
[422071664,1778549446000,-392.0,0.00036153,30]
[422071663,1778549446000,-9752.04,0.00036137,90]
[422071665,1778549446000,-166.8175,0.00036237,7]
[422071667,1778549446000,-152.0,0.00036422,30]
[422071660,1778549446000,-344.2004045,0.00036,120]
[422071730,1778549447000,-300.0,0.00036987,2]
[422071731,1778549447000,-301.57273868,0.00036987,2]
[422071729,1778549447000,-725.54702679,0.00036987,2]
[422071726,1778549447000,-892.74772387,0.00036987,2]
[422071720,1778549447000,-300.0,0.00036987,2]
[422071724,1778549447000,-1066.14755251,0.00036987,2]
[422071715,1778549447000,-300.0,0.00036987,2]
[422071717,1778549447000,-300.0,0.00036987,2]
[422071713,1778549447000,-300.0,0.00036987,2]
[422071722,1778549447000,-300.0,0.00036987,2]
[422071734,1778549447000,-300.34921583,0.00036987,2]
[422071732,1778549447000,-300.0,0.00036987,2]
[422071735,1778549447000,-300.0,0.00036987,2]
[422071725,1778549447000,-300.0,0.00036987,2]
[422071733,1778549447000,-301.62826357,0.00036987,2]
[422071728,1778549447000,-312.76873905,0.00036987,2]
[422071727,1778549447000,-300.0,0.00036987,2]
[422071737,1778549447000,-300.0,0.00036987,2]
[422071738,1778549447000,-300.0,0.00036987,2]
[422071741,1778549447000,-300.0,0.00036987,2]
[422071739,1778549447000,-300.0,0.00036987,2]
[422071740,1778549447000,-300.0,0.00036987,2]
[422071736,1778549447000,-300.0,0.00036987,2]
[422071742,1778549447000,-853.56388588,0.00036987,2]
[422071721,1778549447000,-300.0,0.00036987,2]
[422071723,1778549447000,-527.3647239,0.00036987,2]
[422071719,1778549447000,-604.01726543,0.00036987,2]
[422071701,1778549447000,-1093.93728263,0.00036987,2]
[422071716,1778549447000,-300.0,0.00036987,2]
[422071683,1778549447000,-720.40357235,0.00036684,2]
[422071691,1778549447000,-158.58,0.00036986,60]
[422071699,1778549447000,-300.0,0.00036987,2]
[422071697,1778549447000,-300.0,0.00036987,2]
[422071693,1778549447000,-300.0,0.00036987,2]
[422071698,1778549447000,-300.0,0.00036987,2]
[422071695,1778549447000,-1117.14215031,0.00036987,2]
[422071696,1778549447000,-300.0,0.00036987,2]
[422071746,1778549447000,-343.72939414,0.00036987,2]
[422071684,1778549447000,-166.8175,0.00036785,7]
[422071685,1778549447000,-350.0,0.00036849,5]
[422071687,1778549447000,-677.15,0.000369,7]
[422071718,1778549447000,-300.0,0.00036987,2]
[422071689,1778549447000,-1798.80895522,0.00036981,30]
[422071710,1778549447000,-300.0,0.00036987,2]
[422071709,1778549447000,-300.0,0.00036987,2]
[422071703,1778549447000,-300.0,0.00036987,2]
[422071708,1778549447000,-300.0,0.00036987,2]
[422071707,1778549447000,-300.0,0.00036987,2]
[422071705,1778549447000,-300.0,0.00036987,2]
[422071702,1778549447000,-300.0,0.00036987,2]
[422071704,1778549447000,-300.0,0.00036987,2]
[422071706,1778549447000,-300.0,0.00036987,2]
[422071712,1778549447000,-300.0,0.00036987,2]
[422071711,1778549447000,-300.0,0.00036987,2]
[422071714,1778549447000,-492.3302404,0.00036987,2]
[422071700,1778549447000,-300.0,0.00036987,2]
[422071743,1778549447000,-300.0,0.00036987,2]
[422071793,1778549447000,-300.0,0.00036987,2]
[422071745,1778549447000,-300.0,0.00036987,2]
[422071786,1778549447000,-300.0,0.00036987,2]
[422071775,1778549447000,-300.0,0.00036987,2]
[422071777,1778549447000,-1117.14215031,0.00036987,2]
[422071778,1778549447000,-300.0,0.00036987,2]
[422071779,1778549447000,-300.0,0.00036987,2]
[422071780,1778549447000,-300.0,0.00036987,2]
[422071783,1778549447000,-300.0,0.00036987,2]
[422071782,1778549447000,-1093.93728263,0.00036987,2]
[422071784,1778549447000,-300.0,0.00036987,2]
[422071788,1778549447000,-300.0,0.00036987,2]
[422071797,1778549447000,-492.3302404,0.00036987,2]
[422071796,1778549447000,-300.0,0.00036987,2]
[422071789,1778549447000,-300.0,0.00036987,2]
[422071787,1778549447000,-300.0,0.00036987,2]
[422071790,1778549447000,-300.0,0.00036987,2]
[422071791,1778549447000,-300.0,0.00036987,2]
[422071795,1778549447000,-259.147363,0.00036987,2]
[422071794,1778549447000,-40.852637,0.00036987,2]
[422071792,1778549447000,-300.0,0.00036987,2]
[422071798,1778549447000,-300.0,0.00036987,2]
[422071799,1778549447000,-300.0,0.00036987,2]
[422071800,1778549447000,-300.0,0.00036987,2]
[422071802,1778549447000,-25.50069661,0.00036987,2]
[422071801,1778549447000,-300.0,0.00036987,2]
[422071747,1778549447000,-526.51104629,0.00036987,2]
[422071785,1778549447000,-300.0,0.00036987,2]
[422071774,1778549447000,-300.0,0.00036987,2]
[422071781,1778549447000,-344.70380906,0.00036987,2]
[422071769,1778549447000,-300.0,0.00036987,2]
[422071744,1778549447000,-1911.04728991,0.00036987,2]
[422071748,1778549447000,-300.0,0.00036987,2]
[422071776,1778549447000,-300.0,0.00036987,2]
[422071751,1778549447000,-309.36305204,0.00036987,2]
[422071754,1778549447000,-300.0,0.00036987,2]
[422071753,1778549447000,-863.82204897,0.00036987,2]
[422071755,1778549447000,-1808.59399067,0.00036987,2]
[422071752,1778549447000,-300.0,0.00036987,2]
[422071749,1778549447000,-300.0,0.00036987,2]
[422071756,1778549447000,-300.0,0.00036987,2]
[422071757,1778549447000,-300.0,0.00036987,2]
[422071760,1778549447000,-300.0,0.00036987,2]
[422071758,1778549447000,-300.0,0.00036987,2]
[422071750,1778549447000,-1146.33732402,0.00036987,2]
[422071762,1778549447000,-300.0,0.00036987,2]
[422071759,1778549447000,-310.66975949,0.00036987,2]
[422071771,1778549447000,-300.0,0.00036987,2]
[422071767,1778549447000,-300.0,0.00036987,2]
[422071770,1778549447000,-300.0,0.00036987,2]
[422071766,1778549447000,-300.0,0.00036987,2]
[422071763,1778549447000,-576.75052358,0.00036987,2]
[422071768,1778549447000,-300.0,0.00036987,2]
[422071765,1778549447000,-451.58065097,0.00036987,2]
[422071761,1778549447000,-463.51183089,0.00036987,2]
[422071772,1778549447000,-483.72999423,0.00036987,2]
[422071773,1778549447000,-309.60276076,0.00036987,2]
[422071764,1778549447000,-300.0,0.00036987,2]
[422071816,1778549448000,-300.0,0.00036987,2]
[422071824,1778549448000,-853.56388588,0.00036987,2]
[422071815,1778549448000,-301.57273868,0.00036987,2]
[422071820,1778549448000,-300.0,0.00036987,2]
[422071817,1778549448000,-300.0,0.00036987,2]
[422071813,1778549448000,-725.54702679,0.00036987,2]
[422071826,1778549448000,-1146.33732402,0.00036987,2]
[422071819,1778549448000,-300.0,0.00036987,2]
[422071821,1778549448000,-300.0,0.00036987,2]
[422071814,1778549448000,-300.0,0.00036987,2]
[422071822,1778549448000,-300.0,0.00036987,2]
[422071805,1778549448000,-300.0,0.00036987,2]
[422071823,1778549448000,-300.0,0.00036987,2]
[422071818,1778549448000,-300.34921583,0.00036987,2]
[422071811,1778549448000,-892.74772387,0.00036987,2]
[422071808,1778549448000,-527.3647239,0.00036987,2]
[422071806,1778549448000,-300.0,0.00036987,2]
[422071804,1778549448000,-604.01726543,0.00036987,2]
[422071803,1778549448000,-274.49930339,0.00036987,2]
[422071809,1778549448000,-300.0,0.00036987,2]
[422071810,1778549448000,-1066.14755251,0.00036987,2]
[422071828,1778549448000,-300.0,0.00036987,2]
[422071812,1778549448000,-300.0,0.00036987,2]
[422071827,1778549448000,-309.36305204,0.00036987,2]
[422071807,1778549448000,-300.0,0.00036987,2]
[422071832,1778549448000,-300.0,0.00036987,2]
[422071853,1778549448000,-1584.49377393,0.00037362,2]
[422071852,1778549448000,-174.50622607,0.0003065,2]
[422071840,1778549448000,-300.0,0.00036987,2]
[422071845,1778549448000,-300.0,0.00036987,2]
[422071846,1778549448000,-300.0,0.00036987,2]
[422071841,1778549448000,-451.58065097,0.00036987,2]
[422071851,1778549448000,-16008.73304191,0.00037362,2]
[422071842,1778549448000,-300.0,0.00036987,2]
[422071847,1778549448000,-300.0,0.00036987,2]
[422071843,1778549448000,-300.0,0.00036987,2]
[422071850,1778549448000,-500.0,0.00037106,15]
[422071844,1778549448000,-300.0,0.00036987,2]
[422071848,1778549448000,-483.72999423,0.00036987,2]
[422071831,1778549448000,-1808.59399067,0.00036987,2]
[422071833,1778549448000,-300.0,0.00036987,2]
[422071849,1778549448000,-309.60276076,0.00036987,2]
[422071837,1778549448000,-463.51183089,0.00036987,2]
[422071825,1778549448000,-300.0,0.00036987,2]
[422071830,1778549448000,-300.0,0.00036987,2]
[422071835,1778549448000,-310.66975949,0.00036987,2]
[422071834,1778549448000,-300.0,0.00036987,2]
[422071839,1778549448000,-576.75052358,0.00036987,2]
[422071838,1778549448000,-300.0,0.00036987,2]
[422071836,1778549448000,-300.0,0.00036987,2]
[422071829,1778549448000,-863.82204897,0.00036987,2]
[422071854,1778549457000,750.669,0.00027397,120]
[422071855,1778549472000,454.79,0.00027397,120]
[422071856,1778549532000,500.0,0.00027397,120]
[422071857,1778549585000,500.0,0.00027397,120]
[422071858,1778549645000,469.86,0.00027397,120]
[422071859,1778549705000,313.24,0.00027397,120]
[422071861,1778549765000,208.82,0.00027397,120]
[422071864,1778549825000,208.83,0.00027397,120]
[422071865,1778549884000,208.83,0.00027397,120]
[422071866,1778550167000,160.47,7.074e-05,2]
[422071867,1778550168000,160.47,8.206e-05,2]
[422071868,1778550441000,180.80150154,0.0001,30]
[422071869,1778550583000,877.0,0.00027397,120]
[422071875,1778550631000,-160.47,9.339e-05,2]
[422071876,1778550631000,-188.88959858,0.0001,2]
[422071877,1778550631000,-160.47,0.00010472,2]
[422071891,1778550632000,-74.46888054,0.00012551,2]
[422071892,1778550632000,-154.79660862,0.00012551,2]
[422071893,1778550632000,-150.0,0.00012623,2]
[422071896,1778550632000,-872.31,0.00012726,2]
[422071894,1778550632000,-1592.36737596,0.00012678,2]
[422071897,1778550632000,-160.47,0.00012737,2]
[422071890,1778550632000,-75.53111946,0.00012551,2]
[422071898,1778550632000,-188.88959858,0.00012761,2]
[422071895,1778550632000,-2160.67262404,0.00012678,2]
[422071888,1778550632000,-150.0,0.00012551,2]
[422071883,1778550632000,-188.88959858,0.00012551,2]
[422071887,1778550632000,-150.71092149,0.00012551,2]
[422071886,1778550632000,-151.3380736,0.00012551,2]
[422071884,1778550632000,-153.62321046,0.00012551,2]
[422071885,1778550632000,-151.89021174,0.00012551,2]
[422071882,1778550632000,-1196.73686467,0.0001255,2]
[422071880,1778550632000,-364.29539234,0.00012277,2]
[422071881,1778550632000,-3.26313533,0.0001255,2]
[422071879,1778550632000,-215.26622481,0.00012277,2]
[422071878,1778550632000,-160.47,0.00011604,2]
[422071889,1778550632000,-150.0,0.00012551,2]
[422071904,1778550632000,-96.08430142,0.00013248,2]
[422071901,1778550632000,-1032.34,0.00013009,2]
[422071899,1778550632000,-1285.68,0.00012761,2]
[422071903,1778550632000,-150.0,0.00013248,2]
[422071929,1778550632000,-29217.73789653,0.00013862,2]
[422071932,1778550632000,-1289.0,0.00013862,2]
[422071920,1778550632000,-5156.40079738,0.00013845,2]
[422071925,1778550632000,-431.94050741,0.00013862,2]
[422071913,1778550632000,-1800.0,0.000138,5]
[422071916,1778550632000,-164.53,0.00013817,2]
[422071918,1778550632000,-166.66,0.00013836,2]
[422071924,1778550632000,-6225.19377244,0.00013862,2]
[422071922,1778550632000,-150.0,0.00013861,2]
[422071927,1778550632000,-726.323,0.00013862,2]
[422071911,1778550632000,-166.66,0.00013699,2]
[422071914,1778550632000,-1680.0,0.00013805,2]
[422071902,1778550632000,-150.0,0.00013236,2]
[422071900,1778550632000,-150.0,0.00012899,2]
[422071905,1778550632000,-53.91569858,0.00013248,2]
[422071906,1778550632000,-150.0,0.00013248,2]
[422071908,1778550632000,-314.55402535,0.00013325,2]
[422071907,1778550632000,-540.34597465,0.00013325,2]
[422071910,1778550632000,-600.0,0.000136,4]
[422071912,1778550632000,-1200.0,0.000137,5]
[422071909,1778550632000,-150.0,0.00013597,2]
[422071991,1778550638000,-5750.01832592,0.00013862,2]
[422071995,1778550638000,-5000.0,0.00013862,2]
[422071994,1778550638000,-133320.88631799,0.00013862,2]
[422071993,1778550638000,-2527.77134122,0.00013862,2]
[422071996,1778550638000,-160.47,0.0001387,2]
[422071998,1778550638000,-156.6205718,0.00013945,2]
[422071997,1778550638000,-2400.0,0.000139,5]
[422072003,1778550638000,-158.43502492,0.00013961,2]
[422072005,1778550638000,-341.15054147,0.00013961,2]
[422072010,1778550638000,-500.0,0.00013962,2]
[422072004,1778550638000,-436.78822214,0.00013961,2]
[422072001,1778550638000,-1210.39,0.00013955,2]
[422071992,1778550638000,-81068.75378899,0.00013862,2]
[422072000,1778550638000,-169.78208202,0.00013945,2]
[422071990,1778550638000,-5736.86554654,0.00013862,2]
[422071978,1778550638000,-421.01037581,0.00013861,2]
[422071986,1778550638000,-500.0,0.00013861,2]
[422071999,1778550638000,-154.51027495,0.00013945,2]
[422071973,1778550638000,-500.0,0.00012501,2]
[422071975,1778550638000,-77.70398984,0.00013861,2]
[422071976,1778550638000,-422.29601016,0.00013861,2]
[422071977,1778550638000,-78.98962419,0.00013861,2]
[422071979,1778550638000,-373.70007664,0.00013861,2]
[422071989,1778550638000,-6253.28749806,0.00013862,2]
[422071984,1778550638000,-247.82305578,0.00013861,2]
[422071980,1778550638000,-500.0,0.00013861,2]
[422071982,1778550638000,-398.53160121,0.00013861,2]
[422071981,1778550638000,-500.0,0.00013861,2]
[422071988,1778550638000,-2040.69382003,0.00013862,2]
[422071983,1778550638000,-101.46839879,0.00013861,2]
[422071985,1778550638000,-252.17694422,0.00013861,2]
[422071987,1778550638000,-441.83096472,0.00013862,2]
[422072007,1778550638000,-500.0,0.00013962,2]
[422071974,1778550638000,-500.0,0.00013861,2]
[422072012,1778550638000,-500.0,0.00013962,2]
[422072034,1778550638000,-166.86594744,0.00013973,2]
[422072036,1778550638000,-502.62458746,0.00013973,2]
[422072049,1778550638000,-166.66,0.00013973,2]
[422072038,1778550638000,-500.0,0.00013973,2]
[422072051,1778550638000,-475.57,0.00014,2]
[422072053,1778550638000,-250.0,0.00014,2]
[422072032,1778550638000,-500.0,0.00013973,2]
[422072043,1778550638000,-500.0,0.00013973,2]
[422072041,1778550638000,-500.0,0.00013973,2]
[422072055,1778550638000,-271.29,0.00014084,2]
[422072057,1778550638000,-166.66,0.0001411,2]
[422072059,1778550638000,-1000.0,0.00014232,2]
[422072002,1778550638000,-901.403,0.00013961,2]
[422072062,1778550638000,-500.0,0.00014236,2]
[422072047,1778550638000,-412.09664974,0.00013973,2]
[422072033,1778550638000,-500.0,0.00013973,2]
[422072045,1778550638000,-168.29772726,0.00013973,2]
[422072031,1778550638000,-500.0,0.00013973,2]
[422072035,1778550638000,-500.0,0.00013973,2]
[422072021,1778550638000,-500.0,0.00013962,2]
[422072023,1778550638000,-500.0,0.00013962,2]
[422072015,1778550638000,-500.0,0.00013962,2]
[422072026,1778550638000,-500.0,0.00013973,2]
[422072025,1778550638000,-500.0,0.00013962,2]
[422072019,1778550638000,-519.47334472,0.00013962,2]
[422072024,1778550638000,-2500000.0,0.00013962,2]
[422072018,1778550638000,-500.0,0.00013962,2]
[422072017,1778550638000,-500.0,0.00013962,2]
[422072014,1778550638000,-500.0,0.00013962,2]
[422072027,1778550638000,-500.0,0.00013973,2]
[422072028,1778550638000,-501.2773674,0.00013973,2]
[422072016,1778550638000,-500.0,0.00013962,2]
[422072029,1778550638000,-164.99042343,0.00013973,2]
[422072030,1778550638000,-170.21930791,0.00013973,2]
[422072127,1778550639000,-1008.66102966,0.00015321,2]
[422072129,1778550639000,-1000.0,0.00015321,2]
[422072125,1778550639000,-1304.53,0.00015194,2]
[422072121,1778550639000,-1500.0,0.00015068,2]
[422072123,1778550639000,-2351.0,0.00015185,2]
[422072118,1778550639000,-1500.0,0.00015068,2]
[422072131,1778550639000,-500.0,0.00015332,2]
[422072112,1778550639000,-1225.13073346,0.00015068,2]
[422072116,1778550639000,-505.88820448,0.00015068,2]
[422072139,1778550639000,-2000.0,0.00015616,2]
[422072141,1778550639000,-373.27912327,0.00015616,2]
[422072135,1778550639000,-1304.53,0.00015574,2]
[422072152,1778550639000,-1304.53,0.00015953,2]
[422072157,1778550639000,-2500.0,0.00016164,2]
[422072146,1778550639000,-161.91,0.00015687,2]
[422072148,1778550639000,-271.29,0.00015844,2]
[422072155,1778550639000,-187.19,0.00016151,2]
[422072137,1778550639000,-503.68627816,0.00015606,2]
[422072150,1778550639000,-1500.0,0.00015868,2]
[422072159,1778550639000,-2504.76660442,0.00016164,2]
[422072114,1778550639000,-1500.0,0.00015068,2]
[422072144,1778550639000,-2000.0,0.00015616,2]
[422072110,1778550639000,-500.0,0.00015058,2]
[422072071,1778550639000,-943.76548855,0.00014521,2]
[422072089,1778550639000,-1032.34,0.00014635,2]
[422072064,1778550639000,-166.66,0.00014247,2]
[422072066,1778550639000,-1250.02,0.00014328,2]
[422072073,1778550639000,-1000.0,0.00014521,2]
[422072068,1778550639000,-166.66,0.00014384,2]
[422072069,1778550639000,-500.0,0.0001451,2]
[422072075,1778550639000,-1000.0,0.00014521,2]
[422072161,1778550639000,-433.0,0.00016204,2]
[422072081,1778550639000,-471.99431842,0.00014521,2]
[422072079,1778550639000,-172.85045596,0.00014521,2]
[422072083,1778550639000,-1000.0,0.00014521,2]
[422072077,1778550639000,-500.54652791,0.00014521,2]
[422072085,1778550639000,-1000.0,0.00014521,2]
[422072087,1778550639000,-1000.0,0.00014521,2]
[422072099,1778550639000,-500.0,0.00014784,2]
[422072101,1778550639000,-341.27,0.000148,2]
[422072105,1778550639000,-3000.0,0.000149,5]
[422072104,1778550639000,-161.91,0.00014869,2]
[422072108,1778550639000,-255.0,0.00014984,2]
[422072091,1778550639000,-187.04,0.00014655,2]
[422072093,1778550639000,-161.19191408,0.00014726,2]
[422072097,1778550639000,-500.0,0.00014773,2]
[422072095,1778550639000,-500.0,0.00014773,2]
[422072163,1778550639000,-1032.34,0.00016261,2]
[422072275,1778550639000,-271.29,0.00021126,2]
[422072169,1778550639000,-6225.1937724,0.00016435,2]
[422072228,1778550639000,-584.0,0.0002,2]
[422072225,1778550639000,-273.0,0.0002,2]
[422072224,1778550639000,-814.0,0.0002,2]
[422072229,1778550639000,-178.0,0.0002,2]
[422072222,1778550639000,-1185.0,0.0002,2]
[422072231,1778550639000,-159.40085918,0.0002,2]
[422072234,1778550639000,-838.0,0.0002,2]
[422072236,1778550639000,-500.46002859,0.0002024,2]
[422072238,1778550639000,-152.0,0.00020326,2]
[422072240,1778550639000,-152.0,0.00020333,2]
[422072246,1778550639000,-627.49,0.00020548,2]
[422072242,1778550639000,-374.3,0.00020381,2]
[422072244,1778550639000,-361.17295782,0.000205,11]
[422072248,1778550639000,-273.0,0.00021,2]
[422072265,1778550639000,-584.0,0.00021,2]
[422072268,1778550639000,-178.0,0.00021,2]
[422072279,1778550639000,-5156.40079737,0.00021614,2]
[422072280,1778550639000,-273.0,0.00022,2]
[422072277,1778550639000,-150.58,0.00021273,2]
[422072278,1778550639000,-6225.1937724,0.00021581,2]
[422072165,1778550639000,-1304.53,0.00016333,2]
[422072219,1778550639000,-1032.34,0.00019514,2]
[422072211,1778550639000,-6225.1937724,0.00019008,2]
[422072272,1778550639000,-4630.53,0.00021,2]
[422072218,1778550639000,-271.29,0.00019365,2]
[422072216,1778550639000,-318.11184489,0.0001924,2]
[422072167,1778550639000,-2000.0,0.00016416,2]
[422072173,1778550639000,-487.9776666,0.00016438,2]
[422072171,1778550639000,-374.3,0.00016438,2]
[422072179,1778550639000,-152.0,0.00016462,2]
[422072175,1778550639000,-152.0,0.00016457,2]
[422072183,1778550639000,-161.91,0.00016505,2]
[422072177,1778550639000,-152.0,0.00016457,2]
[422072195,1778550639000,-271.29,0.00017605,2]
[422072198,1778550639000,-5156.40079737,0.00017729,2]
[422072201,1778550639000,-1032.34,0.00017887,2]
[422072181,1778550639000,-152.0,0.00016467,2]
[422072199,1778550639000,-872.31,0.00017817,2]
[422072185,1778550639000,-505.45811258,0.00016712,2]
[422072209,1778550639000,-12191.05,0.00018533,2]
[422072208,1778550639000,-9999.99,0.00018533,2]
[422072188,1778550639000,-1304.53,0.00016713,2]
[422072193,1778550639000,-266.12,0.00017592,2]
[422072205,1778550639000,-374.3,0.0001841,2]
[422072192,1778550639000,-161.91,0.00017323,2]
[422072204,1778550639000,-292.140828,0.00018163,2]
[422072190,1778550639000,-291.94446739,0.00016964,2]
[422072213,1778550639000,-170.64,0.0001924,2]
[422072309,1778550640000,-503.94323449,0.00024773,2]
[422072306,1778550640000,-162.37,0.00024658,2]
[422072314,1778550640000,-194.21923189,0.00025,2]
[422072312,1778550640000,-290.53202889,0.00025,2]
[422072310,1778550640000,-208.15897961,0.00024958,2]
[422072315,1778550640000,-173.74221221,0.00025,2]
[422072311,1778550640000,-214.82098671,0.00024958,2]
[422072313,1778550640000,-603.24154322,0.00025,2]
[422072319,1778550640000,-500.0,0.00025373,2]
[422072317,1778550640000,-221.31,0.00025189,30]
[422072318,1778550640000,-173.74221221,0.000252,2]
[422072320,1778550640000,-500.0,0.00025373,2]
[422072321,1778550640000,-5156.40079737,0.00025498,2]
[422072325,1778550640000,-150.58,0.00025786,2]
[422072323,1778550640000,-475.57,0.000256,7]
[422072308,1778550640000,-159.18,0.00024658,2]
[422072324,1778550640000,-173.74221221,0.000257,2]
[422072316,1778550640000,-159.18,0.00025114,7]
[422072307,1778550640000,-165.47,0.00024658,2]
[422072289,1778550640000,-178.0,0.00023,2]
[422072305,1778550640000,-153.69931528,0.00024658,2]
[422072327,1778550640000,-407.94,0.00025786,2]
[422072282,1778550640000,-178.0,0.00022,2]
[422072281,1778550640000,-584.0,0.00022,2]
[422072283,1778550640000,-221.31,0.00022,30]
[422072287,1778550640000,-273.0,0.00023,2]
[422072285,1778550640000,-374.3,0.00022353,2]
[422072286,1778550640000,-878.57,0.00022466,2]
[422072288,1778550640000,-584.0,0.00023,2]
[422072304,1778550640000,-975.42,0.00024478,2]
[422072284,1778550640000,-475.57,0.000223,7]
[422072295,1778550640000,-185.86138977,0.00023621,2]
[422072298,1778550640000,-584.0,0.00024,2]
[422072297,1778550640000,-273.0,0.00024,2]
[422072300,1778550640000,-6225.1937724,0.00024154,2]
[422072301,1778550640000,-535.45,0.00024174,2]
[422072299,1778550640000,-178.0,0.00024,2]
[422072303,1778550640000,-374.3,0.00024324,2]
[422072302,1778550640000,-407.94,0.00024174,2]
[422072292,1778550640000,-176.78435827,0.00023316,13]
[422072326,1778550640000,-535.45,0.00025786,2]
[422072322,1778550640000,-173.74221221,0.000255,2]
[422072329,1778550640000,-3481.83,0.00025786,2]
[422072346,1778550640000,-312.38,0.00026144,7]
[422072347,1778550640000,-332.7,0.00026144,7]
[422072355,1778550640000,-332.7,0.0002623,7]
[422072354,1778550640000,-312.38,0.0002623,7]
[422072356,1778550640000,-312.38,0.00026259,2]
[422072357,1778550640000,-332.7,0.00026259,2]
[422072358,1778550640000,-312.38,0.00026288,2]
[422072362,1778550640000,-332.7,0.00026317,7]
[422072359,1778550640000,-332.7,0.00026288,2]
[422072361,1778550640000,-312.38,0.00026317,7]
[422072360,1778550640000,-374.3,0.00026296,2]
[422072365,1778550640000,-312.38,0.00026374,2]
[422072364,1778550640000,-332.7,0.00026345,7]